fUST/lending_fUST_20240419
["ID","MTS","AMOUNT","RATE_DAILY","PERIOD"]
[322910294,1713493848746,-500.0,0.00030958,6]
[322910296,1713493848756,-609.00716058,0.00030958,6]
[322910298,1713493848765,-500.0,0.00030958,6]
[322910299,1713493848775,-500.0,0.00030958,6]
[322910301,1713493848785,-691.97,0.00030958,6]
[322910303,1713493848795,-500.0,0.00030958,6]
[322910306,1713493848806,-1252.32,0.00030958,6]
[322910307,1713493848819,-500.0,0.00030958,6]
[322910309,1713493848829,-500.0,0.00030958,6]
[322910311,1713493848839,-543.72494797,0.00030958,6]
[322910313,1713493848848,-500.0,0.00030958,6]
[322910315,1713493848858,-500.0,0.00030958,6]
[322910317,1713493848868,-500.0,0.00030958,6]
[322910319,1713493848878,-599.98649831,0.00030958,6]
[322910321,1713493848887,-508.67049919,0.00030958,6]
[322910323,1713493848896,-500.0,0.00030958,6]
[322910325,1713493848905,-10240.71,0.00030958,6]
[322910327,1713493848914,-1056.82,0.00030958,6]
[322910329,1713493848922,-500.0,0.00030958,6]
[322910330,1713493848931,-974.71,0.00030958,6]
[322910332,1713493848941,-500.0,0.00030958,6]
[322910334,1713493848950,-500.0,0.00030958,6]
[322910336,1713493848959,-1486.98,0.00030958,6]
[322910338,1713493848968,-500.0,0.00030958,6]
[322910340,1713493848977,-500.0,0.00030958,6]
[322910342,1713493848986,-7306.0,0.00030958,6]
[322910344,1713493848995,-500.0,0.00030958,6]
[322910346,1713493849004,-500.0,0.00030958,6]
[322910348,1713493849013,-574.09,0.00030958,6]
[322910350,1713493849022,-500.0,0.00030958,6]
[322910352,1713493849031,-500.0,0.00030958,6]
[322910354,1713493849040,-500.0,0.00030958,6]
[322910356,1713493849049,-591.76,0.00030958,6]
[322910358,1713493849062,-1126.35,0.00030958,6]
[322910360,1713493849071,-10851.06,0.00030958,6]
[322910361,1713493849080,-500.0,0.00030958,2]
[322910363,1713493849089,-305.94110668,0.00030958,6]
[322910365,1713493849098,-500.0,0.00030958,6]
[322910367,1713493849107,-500.0,0.00030958,2]
[322910369,1713493849116,-500.0,0.00030958,6]
[322910371,1713493849125,-11158.69,0.00030958,6]
[322910373,1713493849134,-500.0,0.00030958,6]
[322910375,1713493849143,-500.0,0.00030958,6]
[322910377,1713493849152,-500.0,0.00030958,6]
[322910379,1713493849161,-500.0,0.00030958,2]
[322910381,1713493849170,-500.0,0.00030958,6]
[322910383,1713493849179,-500.0,0.00030958,6]
[322910385,1713493849188,-7664.95,0.00030996,6]
[322910387,1713493849198,-500.0,0.00030997,6]
[322910389,1713493849207,-500.0,0.00030997,6]
[322910391,1713493849217,-347.88193597,0.00030997,6]
[322910392,1713493849226,-502.31396401,0.00030997,6]
[322910395,1713493849237,-500.0,0.00030997,6]
[322910397,1713493849247,-383.80107951,0.00030997,6]
[322910398,1713493849257,-503.84009394,0.00030997,6]
[322910400,1713493849266,-529.35529008,0.00030997,6]
[322910402,1713493849275,-500.0,0.00030997,6]
[322910404,1713493849285,-500.0,0.00030997,6]
[322910406,1713493849294,-611.07861904,0.00030997,6]
[322910408,1713493849304,-500.0,0.00030997,6]
[322910410,1713493849319,-500.0,0.00030997,6]
[322910412,1713493849329,-607.35579216,0.00030997,6]
[322910414,1713493849339,-500.0,0.00030997,6]
[322910416,1713493849348,-500.0,0.00030997,6]
[322910418,1713493849358,-500.0,0.00030997,6]
[322910419,1713493849368,-500.0,0.00030997,6]
[322910421,1713493849377,-500.0,0.00030997,6]
[322910423,1713493849387,-500.0,0.00030997,6]
[322910425,1713493849396,-500.0,0.00030997,6]
[322910427,1713493849405,-500.0,0.00030997,6]
[322910429,1713493849415,-500.0,0.00030997,6]
[322910431,1713493849424,-509.50733343,0.00030997,6]
[322910433,1713493849434,-502.43453756,0.00030997,6]
[322910435,1713493849444,-500.0,0.00030997,6]
[322910437,1713493849454,-500.72460198,0.00030997,6]
[322910439,1713493849463,-504.22410649,0.00030997,6]
[322910440,1713493849473,-500.0,0.00030997,6]
[322910442,1713493849483,-500.0,0.00030997,6]
[322910444,1713493849493,-500.0,0.00030997,6]
[322910446,1713493849503,-500.0,0.00030997,6]
[322910448,1713493849513,-500.0,0.00030997,6]
[322910450,1713493849522,-501.99578591,0.00030997,6]
[322910452,1713493849532,-625.52492769,0.00030997,6]
[322910453,1713493849541,-500.0,0.00030997,6]
[322910454,1713493849550,-500.0,0.00030997,6]
[322910455,1713493849563,-500.0,0.00030997,6]
[322910456,1713493849572,-500.0,0.00030997,6]
[322910457,1713493849581,-500.0,0.00030997,6]
[322910458,1713493849591,-500.0,0.00030997,6]
[322910459,1713493849600,-500.0,0.00030997,6]
[322910460,1713493849611,-500.0,0.00030997,6]
[322910461,1713493849621,-500.0,0.00030997,6]
[322910462,1713493849630,-507.0549992,0.00030997,6]
[322910463,1713493849639,-500.0,0.00030997,6]
[322910464,1713493849649,-507.42751047,0.00030997,6]
[322910465,1713493849660,-1471.35,0.00030997,6]
[322910466,1713493849669,-500.0,0.00030997,6]
[322910467,1713493849743,-500.0,0.00030997,6]
[322910468,1713493849753,-500.0,0.00030997,6]
[322910469,1713493849762,-504.51,0.00030997,6]
[322910470,1713493849771,-385.08909183,0.00030997,6]
[322910471,1713493849781,-500.0,0.00030997,6]
[322910472,1713493849790,-500.0,0.00030997,6]
[322910473,1713493849799,-500.0,0.00030997,6]
[322910474,1713493849808,-500.0,0.00030997,6]
[322910475,1713493849823,-500.0,0.00030997,6]
[322910476,1713493849832,-500.0,0.00030997,6]
[322910477,1713493849841,-500.0,0.00030997,6]
[322910478,1713493849850,-500.0,0.00030997,6]
[322910479,1713493849862,-500.0,0.00031013,2]
[322910480,1713493849871,-500.0,0.00031068,2]
[322910481,1713493849881,-500.0,0.00031123,2]
[322910482,1713493849890,-905.61665966,0.00031131,7]
[322910483,1713493849899,-500.0,0.00031178,2]
[322910484,1713493849909,-427.19602984,0.00031216,7]
[322910485,1713493849919,-7664.95,0.00031231,6]
[322910486,1713493849929,-7664.95,0.00031231,6]
[322910487,1713493849938,-7664.95,0.00031231,6]
[322910488,1713493849948,-7664.95,0.00031231,6]
[322910489,1713493849958,-7664.95,0.00031231,6]
[322910490,1713493849967,-7664.95,0.00031231,6]
[322910491,1713493849976,-7664.97088592,0.00031231,6]
[322910492,1713493849985,-2649.76,0.00031231,6]
[322910493,1713493849994,-2649.76,0.00031231,6]
[322910494,1713493850004,-2649.76,0.00031231,6]
[322910495,1713493850014,-513.45961068,0.00031232,6]
[322910496,1713493850023,-507.5066551,0.00031232,6]
[322910497,1713493850033,-500.0,0.00031232,6]
[322910498,1713493850042,-500.0,0.00031232,6]
[322910499,1713493850052,-518.14519704,0.00031232,6]
[322910500,1713493850064,-896.14,0.00031232,6]
[322910501,1713493850073,-500.0,0.00031232,6]
[322910502,1713493850083,-500.0,0.00031232,6]
[322910503,1713493850092,-664.86,0.00031232,6]
[322910504,1713493850101,-500.0,0.00031232,6]
[322910505,1713493850111,-500.0,0.00031232,6]
[322910506,1713493850120,-1183.16,0.00031232,6]
[322910507,1713493850130,-1087.01,0.00031232,6]
[322910508,1713493850139,-500.0,0.00031232,6]
[322910509,1713493850149,-189.21463355,0.00031232,6]
[322910510,1713493850158,-500.0,0.00031232,6]
[322910511,1713493850167,-500.0,0.00031232,6]
[322910512,1713493850177,-832.48,0.00031232,6]
[322910513,1713493850186,-225.62396713,0.00031232,6]
[322910514,1713493850196,-500.0,0.00031232,6]
[322910515,1713493850205,-500.0,0.00031232,6]
[322910516,1713493850215,-500.0,0.00031232,6]
[322910517,1713493850225,-500.0,0.00031232,6]
[322910518,1713493850236,-500.0,0.00031232,6]
[322910519,1713493850259,-525.04823652,0.00031232,6]
[322910520,1713493850276,-1212.86,0.00031232,6]
[322910521,1713493850298,-500.0,0.00031232,6]
[322910522,1713493850323,-500.0,0.00031232,6]
[322910523,1713493850340,-500.0,0.00031232,6]
[322910524,1713493850357,-500.0,0.00031232,6]
[322910525,1713493850376,-500.0,0.00031232,6]
[322910526,1713493850395,-500.0,0.00031232,6]
[322910527,1713493850414,-507.38235544,0.00031232,6]
[322910528,1713493850433,-2500.67,0.00031232,6]
[322910529,1713493850454,-500.0,0.00031232,6]
[322910530,1713493850473,-914.71,0.00031232,6]
[322910531,1713493850486,-500.0,0.00031232,6]
[322910532,1713493850504,-500.0,0.00031232,6]
[322910533,1713493850521,-500.0,0.00031232,6]
[322910534,1713493850535,-903.56,0.00031232,6]
[322910535,1713493850551,-614.12,0.00031232,6]
[322910536,1713493850573,-500.0,0.00031232,6]
[322910537,1713493850588,-500.0,0.00031232,6]
[322910538,1713493850603,-521.96,0.00031232,6]
[322910539,1713493850618,-500.0,0.00031232,6]
[322910540,1713493850634,-1949.07,0.00031232,6]
[322910541,1713493850648,-500.0,0.00031232,6]
[322910542,1713493850664,-500.0,0.00031232,6]
[322910543,1713493850681,-500.0,0.00031232,6]
[322910544,1713493850695,-500.0,0.00031232,6]
[322910545,1713493850711,-547.25,0.00031232,6]
[322910546,1713493850726,-500.0,0.00031232,6]
[322910547,1713493850741,-500.0,0.00031232,6]
[322910548,1713493850756,-500.0,0.00031232,6]
[322910549,1713493850773,-500.0,0.00031232,6]
[322910550,1713493850788,-1029.38,0.00031232,6]
[322910551,1713493850806,-1566.67,0.00031232,6]
[322910552,1713493850831,-500.0,0.00031232,6]
[322910554,1713493850848,-500.0,0.00031232,6]
[322910557,1713493850864,-548.38540597,0.00031232,6]
[322910559,1713493850879,-500.0,0.00031232,6]
[322910562,1713493850895,-582.73959232,0.00031232,6]
[322910564,1713493850910,-500.0,0.00031232,6]
[322910567,1713493850925,-500.0,0.00031232,6]
[322910569,1713493850941,-500.0,0.00031232,6]
[322910572,1713493850957,-500.0,0.00031232,6]
[322910574,1713493850972,-500.0,0.00031232,6]
[322910577,1713493850987,-752.33,0.00031232,6]
[322910579,1713493851004,-1623.44,0.00031232,6]
[322910582,1713493851022,-500.0,0.00031232,6]
[322910585,1713493851038,-500.0,0.00031232,6]
[322910587,1713493851053,-500.0,0.00031232,6]
[322910590,1713493851074,-500.0,0.00031232,6]
[322910602,1713493851183,-500.0,0.00031232,6]
[322910605,1713493851202,-701.26,0.00031232,6]
[322910607,1713493851212,-500.0,0.00031232,6]
[322910609,1713493851221,-500.0,0.00031232,6]
[322910611,1713493851231,-1637.79,0.00031232,6]
[322910613,1713493851241,-2083.33,0.00031232,6]
[322910615,1713493851250,-500.0,0.00031232,6]
[322910617,1713493851260,-500.0,0.00031232,6]
[322910619,1713493851269,-306.89687779,0.00031232,6]
[322910621,1713493851278,-500.0,0.00031232,6]
[322910623,1713493851287,-500.0,0.00031232,6]
[322910625,1713493851296,-500.0,0.00031232,6]
[322910627,1713493851305,-500.0,0.00031232,6]
[322910629,1713493851320,-500.0,0.00031232,6]
[322910630,1713493851330,-500.0,0.00031232,6]
[322910632,1713493851340,-225.49435166,0.00031232,6]
[322910634,1713493851350,-500.0,0.00031232,6]
[322910636,1713493851360,-25237.66,0.00031232,6]
[322910638,1713493851370,-737.38,0.00031232,6]
[322910640,1713493851379,-500.0,0.00031232,6]
[322910642,1713493851389,-500.0,0.00031232,6]
[322910645,1713493851398,-1515.19,0.00031232,6]
[322910646,1713493851410,-500.0,0.00031232,6]
[322910649,1713493851420,-500.0,0.00031232,6]
[322910650,1713493851430,-500.0,0.00031232,6]
[322910652,1713493851440,-500.0,0.00031232,6]
[322910654,1713493851452,-981.69,0.00031232,6]
[322910656,1713493851461,-500.0,0.00031232,6]
[322910658,1713493851471,-954.56,0.00031232,6]
[322910660,1713493851481,-178.92246702,0.00031232,6]
[322910662,1713493851491,-21078.95,0.00031232,6]
[322910664,1713493851501,-500.0,0.00031232,6]
[322910666,1713493851510,-500.0,0.00031232,6]
[322910668,1713493851520,-500.0,0.00031232,6]
[322910670,1713493851530,-500.0,0.00031232,6]
[322910673,1713493851540,-500.0,0.00031232,6]
[322910674,1713493851550,-548.54,0.00031232,6]
[322910676,1713493851560,-500.0,0.00031232,6]
[322910678,1713493851574,-500.0,0.00031232,6]
[322910680,1713493851583,-2924.29,0.00031232,6]
[322910682,1713493851593,-701.18,0.00031232,6]
[322910684,1713493851602,-630.27,0.00031232,6]
[322910686,1713493851613,-1687.91,0.00031232,6]
[322910688,1713493851622,-926.53,0.00031232,6]
[322910690,1713493851633,-500.0,0.00031232,6]
[322910692,1713493851643,-500.0,0.00031232,6]
[322910694,1713493851654,-513.75437906,0.00031232,6]
[322910695,1713493851664,-500.0,0.00031232,6]
[322910697,1713493851673,-947.82,0.00031232,6]
[322910699,1713493851683,-500.0,0.00031232,6]
[322910701,1713493851692,-500.0,0.00031232,6]
[322910703,1713493851701,-500.0,0.00031232,6]
[322910705,1713493851710,-500.0,0.00031232,6]
[322910707,1713493851723,-500.0,0.00031232,6]
[322910709,1713493851732,-691.97,0.00031232,6]
[322910711,1713493851742,-500.0,0.00031232,6]
[322910712,1713493851751,-1252.32,0.00031232,6]
[322910715,1713493851761,-500.0,0.00031232,6]
[322910716,1713493851771,-500.0,0.00031232,6]
[322910718,1713493851780,-500.0,0.00031232,6]
[322910720,1713493851790,-500.0,0.00031232,6]
[322910722,1713493851799,-500.0,0.00031232,6]
[322910724,1713493851809,-500.0,0.00031232,6]
[322910726,1713493851824,-10240.71,0.00031232,6]
[322910728,1713493851833,-1056.82,0.00031232,6]
[322910730,1713493851844,-500.0,0.00031232,6]
[322910732,1713493851853,-974.71,0.00031232,6]
[322910734,1713493851862,-500.0,0.00031232,6]
[322910737,1713493851872,-500.0,0.00031232,6]
[322910738,1713493851882,-1486.98,0.00031232,6]
[322910741,1713493851891,-500.0,0.00031232,6]
[322910743,1713493851901,-500.0,0.00031232,6]
[322910744,1713493851910,-7306.0,0.00031232,6]
[322910746,1713493851920,-500.0,0.00031232,6]
[322910748,1713493851929,-500.0,0.00031232,6]
[322910750,1713493851939,-574.09,0.00031232,6]
[322910752,1713493851949,-500.0,0.00031232,6]
[322910754,1713493851959,-407.72420238,0.00031232,6]
[322910756,1713493851969,-500.0,0.00031232,6]
[322910759,1713493851979,-591.76,0.00031232,6]
[322910760,1713493851988,-1126.35,0.00031232,6]
[322910762,1713493851998,-10851.06,0.00031232,6]
[322910764,1713493852007,-500.0,0.00031232,2]
[322910766,1713493852017,-500.0,0.00031232,6]
[322910768,1713493852027,-500.0,0.00031232,2]
[322910770,1713493852036,-500.0,0.00031232,6]
[322910772,1713493852046,-11158.69,0.00031232,6]
[322910774,1713493852055,-504.12376608,0.00031232,6]
[322910776,1713493852069,-500.0,0.00031232,6]
[322910778,1713493852078,-500.0,0.00031232,6]
[322910780,1713493852087,-500.0,0.00031232,2]
[322910782,1713493852099,-500.0,0.00031232,6]
[322910784,1713493852108,-500.0,0.00031232,6]
[322910786,1713493852118,-2649.76,0.0003127,6]
[322910789,1713493852128,-500.0,0.00031271,6]
[322910790,1713493852137,-507.50021744,0.00031271,6]
[322910792,1713493852146,-500.0,0.00031271,6]
[322910794,1713493852155,-500.0,0.00031271,6]
[322910796,1713493852165,-595.80209034,0.00031271,6]
[322910798,1713493852174,-500.0,0.00031271,6]
[322910800,1713493852184,-500.0,0.00031271,6]
[322910802,1713493852193,-500.0,0.00031271,6]
[322910804,1713493852202,-500.0,0.00031271,6]
[322910806,1713493852211,-500.0,0.00031271,6]
[322910808,1713493852221,-500.0,0.00031271,6]
[322910810,1713493852230,-526.19634509,0.00031271,6]
[322910812,1713493852240,-500.0,0.00031271,6]
[322910814,1713493852250,-500.0,0.00031271,6]
[322910816,1713493852260,-502.87076455,0.00031271,6]
[322910818,1713493852269,-500.0,0.00031271,6]
[322910820,1713493852279,-500.0,0.00031271,6]
[322910822,1713493852288,-500.0,0.00031271,6]
[322910825,1713493852298,-511.48483928,0.00031271,6]
[322910826,1713493852307,-500.0,0.00031271,6]
[322910828,1713493852322,-515.06322647,0.00031271,6]
[322910830,1713493852331,-520.55547566,0.00031271,6]
[322910832,1713493852340,-500.0,0.00031271,6]
[322910834,1713493852350,-526.57467113,0.00031271,6]
[322910836,1713493852359,-500.0,0.00031271,6]
[322910838,1713493852369,-500.0,0.00031271,6]
[322910840,1713493852378,-500.0,0.00031271,6]
[322910843,1713493852388,-500.0,0.00031271,6]
[322910844,1713493852397,-500.0,0.00031271,6]
[322910847,1713493852407,-500.0,0.00031271,6]
[322910849,1713493852417,-500.0,0.00031271,6]
[322910851,1713493852427,-500.0,0.00031271,6]
[322910852,1713493852436,-505.282493,0.00031271,6]
[322910854,1713493852446,-500.0,0.00031271,6]
[322910856,1713493852456,-500.0,0.00031271,6]
[322910857,1713493852465,-500.0,0.00031271,6]
[322910858,1713493852475,-506.88985607,0.00031271,6]
[322910859,1713493852484,-500.0,0.00031271,6]
[322910860,1713493852494,-503.48021719,0.00031271,6]
[322910861,1713493852504,-500.0,0.00031271,6]
[322910862,1713493852514,-500.0,0.00031271,6]
[322910863,1713493852523,-500.0,0.00031271,6]
[322910864,1713493852533,-500.0,0.00031287,2]
[322910865,1713493852543,-500.0,0.00031342,2]
[322910866,1713493852552,-500.0,0.00031386,6]
[322910867,1713493852562,-188.20788552,0.00031397,2]
[322910869,1713493852578,-427.19602984,0.00031406,7]
[322910871,1713493852587,-166.666666,0.0003148,2]
[322910873,1713493852596,-2649.76,0.00031505,6]
[322910875,1713493852607,-2649.76,0.00031505,6]
[322910877,1713493852616,-2649.76,0.00031505,6]
[322910880,1713493852626,-2649.76,0.00031505,6]
[322910882,1713493852638,-2649.76,0.00031505,6]
[322910884,1713493852647,-2649.95104562,0.00031505,6]
[322910886,1713493852657,-500.0,0.00031506,6]
[322910895,1713493852739,-534.79836654,0.00031506,6]
[322910898,1713493852750,-896.14,0.00031506,6]
[322910900,1713493852759,-500.0,0.00031506,6]
[322910901,1713493852768,-512.73266983,0.00031506,6]
[322910903,1713493852777,-664.86,0.00031506,6]
[322910906,1713493852786,-500.0,0.00031506,6]
[322910908,1713493852795,-500.0,0.00031506,6]
[322910910,1713493852805,-1183.16,0.00031506,6]
[322910911,1713493852816,-1087.01,0.00031506,6]
[322910914,1713493852829,-523.1070242,0.00031506,6]
[322910916,1713493852838,-500.0,0.00031506,6]
[322910918,1713493852848,-500.0,0.00031506,6]
[322910920,1713493852857,-832.48,0.00031506,6]
[322910921,1713493852866,-500.0,0.00031506,6]
[322910924,1713493852876,-524.16662409,0.00031506,6]
[322910926,1713493852885,-427.76461141,0.00031506,6]
[322910928,1713493852895,-500.0,0.00031506,6]
[322910930,1713493852904,-616.75811232,0.00031506,6]
[322910931,1713493852913,-1212.86,0.00031506,6]
[322910934,1713493852922,-500.0,0.00031506,6]
[322910935,1713493852932,-500.0,0.00031506,6]
[322910937,1713493852941,-500.0,0.00031506,6]
[322910940,1713493852950,-500.0,0.00031506,6]
[322910941,1713493852959,-500.0,0.00031506,6]
[322910943,1713493852969,-500.0,0.00031506,6]
[322910945,1713493852978,-2500.67,0.00031506,6]
[322910947,1713493852987,-602.02155937,0.00031506,6]
[322910949,1713493852996,-914.71,0.00031506,6]
[322910951,1713493853005,-500.0,0.00031506,6]
[322910953,1713493853015,-500.0,0.00031506,6]
[322910955,1713493853024,-500.0,0.00031506,6]
[322910957,1713493853033,-903.56,0.00031506,6]
[322910959,1713493853043,-614.12,0.00031506,6]
[322910961,1713493853052,-500.0,0.00031506,6]
[322910963,1713493853062,-500.0,0.00031506,6]
[322910965,1713493853076,-521.96,0.00031506,6]
[322910967,1713493853085,-500.0,0.00031506,6]
[322910969,1713493853095,-1949.07,0.00031506,6]
[322910971,1713493853105,-500.0,0.00031506,6]
[322910973,1713493853114,-527.27127848,0.00031506,6]
[322910975,1713493853123,-500.0,0.00031506,6]
[322910977,1713493853133,-500.0,0.00031506,6]
[322910979,1713493853142,-547.25,0.00031506,6]
[322910981,1713493853151,-609.99816746,0.00031506,6]
[322910983,1713493853160,-500.0,0.00031506,6]
[322910985,1713493853170,-500.0,0.00031506,6]
[322910987,1713493853179,-500.0,0.00031506,6]
[322910989,1713493853188,-1029.38,0.00031506,6]
[322910991,1713493853198,-1566.67,0.00031506,6]
[322910993,1713493853207,-500.0,0.00031506,6]
[322910995,1713493853216,-500.0,0.00031506,6]
[322910997,1713493853225,-500.0,0.00031506,6]
[322910999,1713493853235,-500.0,0.00031506,6]
[322911001,1713493853244,-500.0,0.00031506,6]
[322911003,1713493853254,-500.0,0.00031506,6]
[322911005,1713493853263,-500.0,0.00031506,6]
[322911007,1713493853273,-500.0,0.00031506,6]
[322911009,1713493853283,-752.33,0.00031506,6]
[322911011,1713493853293,-1623.44,0.00031506,6]
[322911013,1713493853303,-500.0,0.00031506,6]
[322911015,1713493853312,-500.0,0.00031506,6]
[322911017,1713493853327,-500.0,0.00031506,6]
[322911019,1713493853337,-556.17411516,0.00031506,6]
[322911021,1713493853348,-500.0,0.00031506,6]
[322911023,1713493853357,-701.26,0.00031506,6]
[322911025,1713493853366,-500.0,0.00031506,6]
[322911027,1713493853376,-500.0,0.00031506,6]
[322911029,1713493853385,-1637.79,0.00031506,6]
[322911031,1713493853395,-2083.33,0.00031506,6]
[322911033,1713493853405,-500.0,0.00031506,6]
[322911035,1713493853414,-500.0,0.00031506,6]
[322911037,1713493853424,-500.0,0.00031506,6]
[322911039,1713493853434,-500.0,0.00031506,6]
[322911041,1713493853443,-607.10317025,0.00031506,6]
[322911043,1713493853452,-500.0,0.00031506,6]
[322911045,1713493853463,-500.0,0.00031506,6]
[322911047,1713493853472,-500.0,0.00031506,6]
[322911049,1713493853481,-190.4662504,0.00031506,6]
[322911051,1713493853490,-25237.66,0.00031506,6]
[322911053,1713493853499,-737.38,0.00031506,6]
[322911055,1713493853508,-536.57642665,0.00031506,6]
[322911057,1713493853517,-581.30823651,0.00031506,6]
[322911059,1713493853527,-1515.19,0.00031506,6]
[322911061,1713493853536,-500.0,0.00031506,6]
[322911063,1713493853545,-500.0,0.00031506,6]
[322911065,1713493853554,-500.0,0.00031506,6]
[322911067,1713493853564,-500.0,0.00031506,6]
[322911069,1713493853577,-981.69,0.00031506,6]
[322911071,1713493853587,-492.78831422,0.00031506,6]
[322911073,1713493853596,-954.56,0.00031506,6]
[322911075,1713493853606,-21078.95,0.00031506,6]
[322911077,1713493853615,-500.0,0.00031506,6]
[322911079,1713493853624,-500.0,0.00031506,6]
[322911080,1713493853634,-500.0,0.00031506,6]
[322911081,1713493853643,-500.0,0.00031506,6]
[322911083,1713493853652,-500.0,0.00031506,6]
[322911084,1713493853661,-548.54,0.00031506,6]
[322911085,1713493853670,-500.0,0.00031506,6]
[322911086,1713493853681,-500.0,0.00031506,6]
[322911088,1713493853690,-2924.29,0.00031506,6]
[322911090,1713493853699,-701.18,0.00031506,6]
[322911092,1713493853709,-630.27,0.00031506,6]
[322911094,1713493853718,-1687.91,0.00031506,6]
[322911095,1713493853728,-926.53,0.00031506,6]
[322911096,1713493853739,-500.0,0.00031506,6]
[322911097,1713493853748,-500.0,0.00031506,6]
[322911098,1713493853757,-500.0,0.00031506,6]
[322911099,1713493853766,-947.82,0.00031506,6]
[322911100,1713493853775,-640.21430724,0.00031506,6]
[322911101,1713493853784,-500.0,0.00031506,6]
[322911102,1713493853793,-330.94417313,0.00031506,6]
[322911103,1713493853803,-500.0,0.00031506,6]
[322911104,1713493853812,-500.0,0.00031506,6]
[322911105,1713493853825,-691.97,0.00031506,6]
[322911106,1713493853835,-500.0,0.00031506,6]
[322911107,1713493853844,-1252.32,0.00031506,6]
[322911108,1713493853853,-500.0,0.00031506,6]
[322911109,1713493853863,-500.0,0.00031506,6]
[322911110,1713493853872,-500.0,0.00031506,6]
[322911111,1713493853881,-500.0,0.00031506,6]
[322911112,1713493853890,-500.0,0.00031506,6]
[322911113,1713493853899,-191.52375137,0.00031506,6]
[322911114,1713493853908,-10240.71,0.00031506,6]
[322911115,1713493853917,-1056.82,0.00031506,6]
[322911116,1713493853926,-522.21988316,0.00031506,6]
[322911117,1713493853936,-974.71,0.00031506,6]
[322911118,1713493853945,-500.0,0.00031506,6]
[322911119,1713493853955,-500.0,0.00031506,6]
[322911120,1713493853964,-1486.98,0.00031506,6]
[322911121,1713493853974,-500.0,0.00031506,6]
[322911122,1713493853982,-500.0,0.00031506,6]
[322911123,1713493853991,-7306.0,0.00031506,6]
[322911124,1713493854000,-500.0,0.00031506,6]
[322911125,1713493854009,-500.0,0.00031506,6]
[322911126,1713493854019,-574.09,0.00031506,6]
[322911127,1713493854027,-500.0,0.00031506,6]
[322911128,1713493854037,-500.0,0.00031506,6]
[322911129,1713493854118,-591.76,0.00031506,6]
[322911130,1713493854128,-1126.35,0.00031506,6]
[322911131,1713493854137,-10851.06,0.00031506,6]
[322911132,1713493854146,-527.34555479,0.00031506,2]
[322911133,1713493854156,-500.0,0.00031506,6]
[322911134,1713493854165,-500.0,0.00031506,6]
[322911135,1713493854175,-11158.69,0.00031506,6]
[322911136,1713493854185,-500.0,0.00031506,6]
[322911137,1713493854194,-500.0,0.00031506,6]
[322911138,1713493854203,-500.0,0.00031506,2]
[322911139,1713493854212,-500.0,0.00031506,6]
[322911140,1713493854221,-500.0,0.00031506,6]
[322911141,1713493854230,-180.99188609,0.0003151,7]
[322911142,1713493854239,-223.55447716,0.00031515,7]
[322911143,1713493854248,-171.63386419,0.00031536,7]
[322911144,1713493854258,-500.0,0.00031545,6]